2CCN - Level 2 Cost Centre Name,,9CCN - Level 9 Cost Centre Name,9CCC - Level 9 Cost Centre Code,9AN - Level 9 Account Name,9AC - Level 9 Account Code,Date posted,Date of transaction,Merchant Name,Merchant City,Merchant State,Merchant Zip Code,Originating Account Name,Originating Account Number,MCC/SIC Code,MCC Description,Original Amount,Currency,Conversion Rate,Billed Amount,Debit Credit,Reference Number,Statement Cycle,Account Name
Gloucester City Council,23UE,Museum of Gloucester,MU002,General Supplies/Materials,3025,05/07/2018,04/07/2018,Amazon UK Marketplace,800-279-6620,LUX,L2338,REDACTED,556*********2362,5942,BOOK STORES,72.96,Pound Sterling (826),1,72.96,Debit,5.52E+22,02/08/2018,GLOUCESTER CC
Gloucester City Council,23UE,Museum of Gloucester,MU002,Catering Provisions,3103,11/07/2018,10/07/2018,ASDA SUPERSTORE,GLOUCESTER,GBR,GL1 1DS,REDACTED,556*********2362,5411,"GROCERY STORES, SUPERMARKETS",2.96,Pound Sterling (826),1,2.96,Debit,4.54E+22,02/08/2018,GLOUCESTER CC
Gloucester City Council,23UE,Gloucester Life Museum,MU005,Catering Provisions,3103,16/07/2018,13/07/2018,ASDA SUPERSTORE,GLOUCESTER,GBR,GL1 1DS,REDACTED,556*********2362,5411,"GROCERY STORES, SUPERMARKETS",12.34,Pound Sterling (826),1,12.34,Debit,4.54E+22,02/08/2018,GLOUCESTER CC
Gloucester City Council,23UE,Museum of Gloucester,MU002,General Supplies/Materials,3025,16/07/2018,14/07/2018,WWW.BRUNELENGRAVING.CO,INTERNET,GBR,BS21 6QH,REDACTED,556*********2362,2791,"TYPESETTING,PLATE MAKING & RELATED SERVICES",86.94,Pound Sterling (826),1,86.94,Debit,9.54E+22,02/08/2018,GLOUCESTER CC
Gloucester City Council,23UE,Museum of Gloucester,MU002,General Supplies/Materials,3025,16/07/2018,14/07/2018,WH SMITH,GLOUCESTER,GBR,GL1 1NZ,REDACTED,556*********2362,5994,NEWS DEALERS AND NEWSSTANDS,5.58,Pound Sterling (826),1,5.58,Debit,9.54E+22,02/08/2018,GLOUCESTER CC
Gloucester City Council,23UE,Museum of Gloucester,MU002,General Supplies/Materials,3025,16/07/2018,15/07/2018,Amazon UK Marketplace,800-279-6620,LUX,L2338,REDACTED,556*********2362,5942,BOOK STORES,19.28,Pound Sterling (826),1,19.28,Debit,5.52E+22,02/08/2018,GLOUCESTER CC
Gloucester City Council,23UE,Museum of Gloucester,MU002,Catering Provisions,3103,23/07/2018,21/07/2018,ASDA SUPERSTORE,GLOUCESTER,GBR,GL1 1DS,REDACTED,556*********2362,5411,"GROCERY STORES, SUPERMARKETS",34.44,Pound Sterling (826),1,34.44,Debit,5.38E+21,02/08/2018,GLOUCESTER CC
Gloucester City Council,23UE,Museum of Gloucester,MU002,General Supplies/Materials,3025,27/07/2018,26/07/2018,WH SMITH,GLOUCESTER,GBR,GL1 1NZ,REDACTED,556*********2362,5994,NEWS DEALERS AND NEWSSTANDS,4.99,Pound Sterling (826),1,4.99,Debit,2.54E+22,02/08/2018,GLOUCESTER CC
Gloucester City Council,23UE,Gloucester Life Museum,MU005,Catering Provisions,3103,30/07/2018,28/07/2018,ASDA SUPERSTORE,GLOUCESTER,GBR,GL1 1DS,REDACTED,556*********2362,5411,"GROCERY STORES, SUPERMARKETS",18.61,Pound Sterling (826),1,18.61,Debit,1.54E+22,02/08/2018,GLOUCESTER CC
Gloucester City Council,23UE,Countryside Unit,EP003,Operative Clothing Allowances,502,05/07/2018,04/07/2018,WWW.CHALLENGERPARTS.CO,INTERNET,GBR,NG32 2LX,REDACTED,556*********6734,5599,MISCELLANEOUS AUTOMOTIVE DEALERS,35.73,Pound Sterling (826),1,35.73,Debit,2.54E+22,02/08/2018,GLOUCESTER CC
Gloucester City Council,23UE,Countryside Unit,EP003,Vehicle Repairs and Maintenance,2103,11/07/2018,10/07/2018,Amazon UK Marketplace,800-279-6620,LUX,L2338,REDACTED,556*********6734,5942,BOOK STORES,20.6,Pound Sterling (826),1,20.6,Debit,5.52E+22,02/08/2018,GLOUCESTER CC
Gloucester City Council,23UE,Countryside Unit,EP003,Grounds Maintenance,1100,25/07/2018,24/07/2018,MOLE VALLEY FARMERS (V,SOUTH MOLTON,,EX36 3BH,REDACTED,556*********6734,5211,LUMBER AND BUILDING MATERIALS STORES,36.91,Pound Sterling (826),1,36.91,Debit,5.55E+22,02/08/2018,GLOUCESTER CC
Gloucester City Council,23UE,Guildhall Bar and Caf�,GH005,Catering Provisions,3103,03/07/2018,02/07/2018,SAINSBURYS SACAT 0771,GLOUCESTER,GBR,GL1 2AG,REDACTED,556*********1155,5411,"GROCERY STORES, SUPERMARKETS",27.5,Pound Sterling (826),1,27.5,Debit,3.54E+22,02/08/2018,GLOUCESTER CC
Gloucester City Council,23UE,Guildhall Bar and Caf�,GH005,Catering Provisions,3103,03/07/2018,02/07/2018,POUNDLAND LTD,WILLENHALL,,WV13 2QT,REDACTED,556*********1155,5310,DISCOUNT STORES,2,Pound Sterling (826),1,2,Debit,8.55E+22,02/08/2018,GLOUCESTER CC
Gloucester City Council,23UE,Guildhall Bar and Caf�,GH005,Catering Provisions,3103,03/07/2018,02/07/2018,ASDA SUPERSTORE,GLOUCESTER,GBR,GL1 1DS,REDACTED,556*********1155,5411,"GROCERY STORES, SUPERMARKETS",7.05,Pound Sterling (826),1,7.05,Debit,4.54E+22,02/08/2018,GLOUCESTER CC
Gloucester City Council,23UE,Guildhall Bar and Caf�,GH005,Catering Provisions,3103,03/07/2018,02/07/2018,BOOKER LIMITED GLOUCES,GLOUCESTER,GBR,GL4 3RT,REDACTED,556*********1155,5811,CATERERS,27.16,Pound Sterling (826),1,27.16,Debit,5.52E+22,02/08/2018,GLOUCESTER CC
Gloucester City Council,23UE,Guildhall Bar and Caf�,GH005,Catering Provisions,3103,10/07/2018,09/07/2018,SAINSBURYS 0771,GLOUCESTER,GBR,GL1 2AG,REDACTED,556*********1155,5411,"GROCERY STORES, SUPERMARKETS",21.95,Pound Sterling (826),1,21.95,Debit,2.54E+22,02/08/2018,GLOUCESTER CC
Gloucester City Council,23UE,Guildhall Bar and Caf�,GH005,Catering Provisions,3103,11/07/2018,10/07/2018,SAINSBURYS SACAT 0608,GLOUCESTER,GBR,GL4 3RT,REDACTED,556*********1155,5411,"GROCERY STORES, SUPERMARKETS",10,Pound Sterling (826),1,10,Debit,2.54E+22,02/08/2018,GLOUCESTER CC
Gloucester City Council,23UE,Guildhall Bar and Caf�,GH005,Catering Provisions,3103,11/07/2018,10/07/2018,BOOKER LIMITED GLOUCES,GLOUCESTER,GBR,GL4 3RT,REDACTED,556*********1155,5811,CATERERS,148.8,Pound Sterling (826),1,148.8,Debit,5.52E+22,02/08/2018,GLOUCESTER CC
Gloucester City Council,23UE,Guildhall Events,GH002,Catering Provisions,3103,12/07/2018,11/07/2018,ASDA SUPERSTORE,GLOUCESTER,GBR,GL1 1DS,REDACTED,556*********1155,5411,"GROCERY STORES, SUPERMARKETS",32.09,Pound Sterling (826),1,32.09,Debit,4.54E+22,02/08/2018,GLOUCESTER CC
Gloucester City Council,23UE,Guildhall Bar and Caf�,GH005,Catering Provisions,3103,18/07/2018,17/07/2018,SAINSBURYS SACAT 0771,GLOUCESTER,GBR,GL1 2AG,REDACTED,556*********1155,5411,"GROCERY STORES, SUPERMARKETS",6.2,Pound Sterling (826),1,6.2,Debit,2.54E+22,02/08/2018,GLOUCESTER CC
Gloucester City Council,23UE,Guildhall Bar and Caf�,GH005,Catering Provisions,3103,18/07/2018,17/07/2018,ICELAND,GLOUCESTER,GBR,GL1 1SA,REDACTED,556*********1155,5411,"GROCERY STORES, SUPERMARKETS",5,Pound Sterling (826),1,5,Debit,2.54E+22,02/08/2018,GLOUCESTER CC
Gloucester City Council,23UE,Guildhall Bar and Caf�,GH005,Catering Provisions,3103,19/07/2018,18/07/2018,SAINSBURYS SACAT 0771,GLOUCESTER,GBR,GL1 2AG,REDACTED,556*********1155,5411,"GROCERY STORES, SUPERMARKETS",4.4,Pound Sterling (826),1,4.4,Debit,2.54E+22,02/08/2018,GLOUCESTER CC
Gloucester City Council,23UE,Guildhall Bar and Caf�,GH005,Catering Provisions,3103,19/07/2018,18/07/2018,SAINSBURYS SACAT 0771,GLOUCESTER,GBR,GL1 2AG,REDACTED,556*********1155,5411,"GROCERY STORES, SUPERMARKETS",2.4,Pound Sterling (826),1,2.4,Debit,2.54E+22,02/08/2018,GLOUCESTER CC
Gloucester City Council,23UE,Guildhall Events,GH002,Catering Provisions,3103,19/07/2018,18/07/2018,TESCO STORE 2581,GLOUCESTER,GBR,GL1 2SR,REDACTED,556*********1155,5411,"GROCERY STORES, SUPERMARKETS",140.36,Pound Sterling (826),1,140.36,Debit,4.54E+22,02/08/2018,GLOUCESTER CC
Gloucester City Council,23UE,Blackfriars Weddings,GH011,Catering Provisions,3103,20/07/2018,19/07/2018,LIDL UK GLOUCESTER,GLOUCESTER,GBR,GL4 4LP,REDACTED,556*********1155,5411,"GROCERY STORES, SUPERMARKETS",29.81,Pound Sterling (826),1,29.81,Debit,2.54E+22,02/08/2018,GLOUCESTER CC
Gloucester City Council,23UE,Guildhall Events,GH002,Catering Provisions,3103,23/07/2018,20/07/2018,FAT TONIS PIZZERIA,GLOUCESTER,GBR,GL1 1RP,REDACTED,556*********1155,5814,FAST FOOD RESTAURANTS,60,Pound Sterling (826),1,60,Debit,5.52E+22,02/08/2018,GLOUCESTER CC
Gloucester City Council,23UE,Guildhall Events,GH002,Catering Provisions,3103,23/07/2018,20/07/2018,FAT TONIS PIZZERIA,GLOUCESTER,GBR,GL1 1RP,REDACTED,556*********1155,5814,FAST FOOD RESTAURANTS,32,Pound Sterling (826),1,32,Debit,5.52E+22,02/08/2018,GLOUCESTER CC
Gloucester City Council,23UE,Guildhall Events,GH002,Catering Provisions,3103,23/07/2018,21/07/2018,FAT TONIS PIZZERIA,GLOUCESTER,GBR,GL1 1RP,REDACTED,556*********1155,5814,FAST FOOD RESTAURANTS,17,Pound Sterling (826),1,17,Debit,5.52E+22,02/08/2018,GLOUCESTER CC
Gloucester City Council,23UE,Guildhall Events,GH002,Catering Provisions,3103,23/07/2018,21/07/2018,FAT TONIS PIZZERIA,GLOUCESTER,GBR,GL1 1RP,REDACTED,556*********1155,5814,FAST FOOD RESTAURANTS,64.5,Pound Sterling (826),1,64.5,Debit,5.52E+22,02/08/2018,GLOUCESTER CC
Gloucester City Council,23UE,Guildhall Bar and Caf�,GH005,Catering Provisions,3103,24/07/2018,23/07/2018,ICELAND,GLOUCESTER,GBR,GL1 1SA,REDACTED,556*********1155,5411,"GROCERY STORES, SUPERMARKETS",7.5,Pound Sterling (826),1,7.5,Debit,2.54E+22,02/08/2018,GLOUCESTER CC
Gloucester City Council,23UE,Guildhall Bar and Caf�,GH005,Catering Provisions,3103,24/07/2018,23/07/2018,ICELAND,GLOUCESTER,GBR,GL1 1SA,REDACTED,556*********1155,5411,"GROCERY STORES, SUPERMARKETS",4,Pound Sterling (826),1,4,Debit,2.54E+22,02/08/2018,GLOUCESTER CC
Gloucester City Council,23UE,Guildhall Bar and Caf�,GH005,Equipment and Furniture,3001,25/07/2018,24/07/2018,SAINSBURYS SACAT 0771,GLOUCESTER,GBR,GL1 2AG,REDACTED,556*********1155,5411,"GROCERY STORES, SUPERMARKETS",4.2,Pound Sterling (826),1,4.2,Debit,2.54E+22,02/08/2018,GLOUCESTER CC
Gloucester City Council,23UE,Guildhall Bar and Caf�,GH005,Equipment and Furniture,3001,26/07/2018,25/07/2018,BOOKER LIMITED GLOUCES,GLOUCESTER,GBR,GL4 3RT,REDACTED,556*********1155,5811,CATERERS,138.93,Pound Sterling (826),1,138.93,Debit,5.52E+22,02/08/2018,GLOUCESTER CC
Gloucester City Council,23UE,Guildhall Bar and Caf�,GH005,Equipment and Furniture,3001,30/07/2018,27/07/2018,SAINSBURYS SACAT 0771,GLOUCESTER,GBR,GL1 2AG,REDACTED,556*********1155,5411,"GROCERY STORES, SUPERMARKETS",4.45,Pound Sterling (826),1,4.45,Debit,2.54E+22,02/08/2018,GLOUCESTER CC
Gloucester City Council,23UE,Guildhall Bar and Caf�,GH005,Catering Provisions,3103,30/07/2018,27/07/2018,ICELAND,GLOUCESTER,GBR,GL1 1SA,REDACTED,556*********1155,5411,"GROCERY STORES, SUPERMARKETS",11,Pound Sterling (826),1,11,Debit,2.54E+22,02/08/2018,GLOUCESTER CC
Gloucester City Council,23UE,Guildhall Bar and Caf�,GH005,Catering Provisions,3103,31/07/2018,30/07/2018,SAINSBURYS SACAT 0771,GLOUCESTER,GBR,GL1 2AG,REDACTED,556*********1155,5411,"GROCERY STORES, SUPERMARKETS",44.11,Pound Sterling (826),1,44.11,Debit,2.54E+22,02/08/2018,GLOUCESTER CC
Gloucester City Council,23UE,Guildhall Bar and Caf�,GH005,Catering Provisions,3103,31/07/2018,30/07/2018,SAINSBURYS SACAT 0771,GLOUCESTER,GBR,GL1 2AG,REDACTED,556*********1155,5411,"GROCERY STORES, SUPERMARKETS",11.3,Pound Sterling (826),1,11.3,Debit,2.54E+22,02/08/2018,GLOUCESTER CC
Gloucester City Council,23UE,Guildhall Bar and Caf�,GH005,Catering Provisions,3103,01/08/2018,31/07/2018,SAINSBURYS SACAT 0771,GLOUCESTER,GBR,GL1 2AG,REDACTED,556*********1155,5411,"GROCERY STORES, SUPERMARKETS",7.55,Pound Sterling (826),1,7.55,Debit,2.54E+22,02/08/2018,GLOUCESTER CC
Gloucester City Council,23UE,Guildhall Events,GH002,Catering Provisions,3103,01/08/2018,31/07/2018,NEPALESE CHEF LIMITED,GLOUCESTER,,GL1 3NR,REDACTED,556*********1155,5812,"EATING PLACES, RESTAURANTS",27.75,Pound Sterling (826),1,27.75,Debit,5.55E+22,02/08/2018,GLOUCESTER CC
Gloucester City Council,23UE,Guildhall Events,GH002,Catering Provisions,3103,01/08/2018,31/07/2018,ASDA SUPERSTORE,GLOUCESTER,GBR,GL1 1DS,REDACTED,556*********1155,5411,"GROCERY STORES, SUPERMARKETS",65.31,Pound Sterling (826),1,65.31,Debit,4.54E+22,02/08/2018,GLOUCESTER CC
Gloucester City Council,23UE,Guildhall Bar and Caf�,GH005,Catering Provisions,3103,01/08/2018,31/07/2018,ICELAND,GLOUCESTER,GBR,GL1 1SA,REDACTED,556*********1155,5411,"GROCERY STORES, SUPERMARKETS",1.4,Pound Sterling (826),1,1.4,Debit,2.54E+22,02/08/2018,GLOUCESTER CC
Gloucester City Council,23UE,Guildhall Events,GH002,Catering Provisions,3103,02/08/2018,31/07/2018,PAPA JOHNS,GLOUCESTER GL,,GL1 5AA,REDACTED,556*********1155,5814,FAST FOOD RESTAURANTS,14.93,Pound Sterling (826),1,14.93,Debit,5.52E+22,02/08/2018,GLOUCESTER CC
Gloucester City Council,23UE,Eastgate Market,MK003,Equipment and Furniture,3001,25/07/2018,24/07/2018,AMAZON SVCS EU-UK AMAZ,AMAZON.CO.UK,LUX,,REDACTED,556*********8997,5942,BOOK STORES,46.99,Pound Sterling (826),1,46.99,Debit,8.54E+22,02/08/2018,GLOUCESTER CC
Gloucester City Council,23UE,Museum of Gloucester,MU002,Printing External,3203,25/07/2018,24/07/2018,WWW.INSTANTPRINT.C,01709 382202,,S63 5DR,REDACTED,556*********8997,7338,QUICK-COPY AND REPRODUCTION SERVICES,39.19,Pound Sterling (826),1,39.19,Debit,8.55E+22,02/08/2018,GLOUCESTER CC
Gloucester City Council,23UE,TIC Trading,TI003,General Supplies/Materials,3025,01/08/2018,31/07/2018,ROYAL MAIL ONLINE SHOP,INTERNET,GBR,W1T 1HQ,REDACTED,556*********8997,9402,POSTAGE STAMPS,713.86,Pound Sterling (826),1,713.86,Debit,5.54E+22,02/08/2018,GLOUCESTER CC
Gloucester City Council,23UE,Docks Complex - Services,AM006,Hospitality & Refreshments,3104,30/07/2018,27/07/2018,SAINSBURYS SACAT 2221,GLOUCESTER,GBR,GL2 5SA,REDACTED,556*********4301,5411,"GROCERY STORES, SUPERMARKETS",17.5,Pound Sterling (826),1,17.5,Debit,2.54E+22,02/08/2018,GLOUCESTER CC
Gloucester City Council,23UE,Docks Complex - Services,AM006,Hospitality & Refreshments,3104,03/07/2018,02/07/2018,SAINSBURYS SACAT 2221,GLOUCESTER,GBR,GL2 5SA,REDACTED,556*********6128,5411,"GROCERY STORES, SUPERMARKETS",9,Pound Sterling (826),1,9,Debit,3.54E+22,02/08/2018,GLOUCESTER CC
Gloucester City Council,23UE,Docks Complex - Services,AM006,Building Repairs and Maintenance,1001,05/07/2018,04/07/2018,B & Q 1179,GLOUCESTER,,GL12SG,REDACTED,556*********6128,5211,LUMBER AND BUILDING MATERIALS STORES,3.48,Pound Sterling (826),1,3.48,Debit,8.55E+22,02/08/2018,GLOUCESTER CC
Gloucester City Council,23UE,Docks Complex - Services,AM006,Building Repairs and Maintenance,1001,06/07/2018,05/07/2018,TIMPSON LTD,GLOUCESTER,,GL11XH,REDACTED,556*********6128,7251,"SHOE REPAIR SHOPS, SHOE SHINE PARLORS & HAT CLEANING SHOPS",10,Pound Sterling (826),1,10,Debit,8.55E+22,02/08/2018,GLOUCESTER CC
Gloucester City Council,23UE,Docks Complex - Services,AM006,Building Repairs and Maintenance,1001,06/07/2018,05/07/2018,KICKTEK LTD,4.42E+11,GBR,RG189HQ,REDACTED,556*********6128,5732,ELECTRONIC SALES,80.97,Pound Sterling (826),1,80.97,Debit,8.51E+22,02/08/2018,GLOUCESTER CC
Gloucester City Council,23UE,Docks Complex - Services,AM006,Building Repairs and Maintenance,1001,06/07/2018,05/07/2018,WATER FILTER MAN LTD,TIPTON,,DY4 9AH,REDACTED,556*********6128,1731,ELECTRICAL CONTRACTORS,21.95,Pound Sterling (826),1,21.95,Debit,8.55E+22,02/08/2018,GLOUCESTER CC
Gloucester City Council,23UE,Docks Complex - Services,AM006,Hospitality & Refreshments,3104,17/07/2018,16/07/2018,SAINSBURYS SACAT 2221,GLOUCESTER,GBR,GL2 5SA,REDACTED,556*********6128,5411,"GROCERY STORES, SUPERMARKETS",3.3,Pound Sterling (826),1,3.3,Debit,2.54E+22,02/08/2018,GLOUCESTER CC
Gloucester City Council,23UE,Housing Services,HS001,B&B Payments,1303,03/07/2018,02/07/2018,TRAVELODGE GB0000,THAME,,OX9 3AT,REDACTED,556*********6959,3615,TRAVELODGE,251,Pound Sterling (826),1,251,Debit,5.55E+22,02/08/2018,GLOUCESTER CC
Gloucester City Council,23UE,Housing Services,HS001,B&B Payments,1303,04/07/2018,03/07/2018,Amerisuites,GLOUCESTER,,GL2 4NF,REDACTED,556*********6959,3514,AMERISUITES,560,Pound Sterling (826),1,560,Debit,8.55E+22,02/08/2018,GLOUCESTER CC
Gloucester City Council,23UE,Housing Services,HS001,B&B Payments,1303,04/07/2018,03/07/2018,TRAVELODGE GB0000,THAME,,OX9 3AT,REDACTED,556*********6959,3615,TRAVELODGE,92,Pound Sterling (826),1,92,Debit,5.55E+22,02/08/2018,GLOUCESTER CC
Gloucester City Council,23UE,Housing Services,HS001,B&B Payments,1303,04/07/2018,03/07/2018,TRAVELODGE GB0000,THAME,,OX9 3AT,REDACTED,556*********6959,3615,TRAVELODGE,180,Pound Sterling (826),1,180,Debit,5.55E+22,02/08/2018,GLOUCESTER CC
Gloucester City Council,23UE,Housing Services,HS001,B&B Payments,1303,04/07/2018,03/07/2018,TRAVELODGE GB0000,THAME,,OX9 3AT,REDACTED,556*********6959,3615,TRAVELODGE,251,Pound Sterling (826),1,251,Debit,5.55E+22,02/08/2018,GLOUCESTER CC
Gloucester City Council,23UE,Housing Services,HS001,B&B Payments,1303,05/07/2018,04/07/2018,Amerisuites,GLOUCESTER,,GL2 4NF,REDACTED,556*********6959,3514,AMERISUITES,285,Pound Sterling (826),1,285,Debit,8.55E+22,02/08/2018,GLOUCESTER CC
Gloucester City Council,23UE,Housing Services,HS001,B&B Payments,1303,05/07/2018,04/07/2018,Amerisuites,GLOUCESTER,,GL2 4NF,REDACTED,556*********6959,3514,AMERISUITES,285,Pound Sterling (826),1,285,Debit,8.55E+22,02/08/2018,GLOUCESTER CC
Gloucester City Council,23UE,Housing Services,HS001,B&B Payments,1303,05/07/2018,04/07/2018,Amerisuites,GLOUCESTER,,GL2 4NF,REDACTED,556*********6959,3514,AMERISUITES,560,Pound Sterling (826),1,560,Debit,8.55E+22,02/08/2018,GLOUCESTER CC
Gloucester City Council,23UE,Housing Services,HS001,B&B Payments,1303,05/07/2018,04/07/2018,TRAVELODGE GB0000,THAME,,OX9 3AT,REDACTED,556*********6959,3615,TRAVELODGE,820,Pound Sterling (826),1,820,Debit,5.55E+22,02/08/2018,GLOUCESTER CC
Gloucester City Council,23UE,Housing Services,HS001,B&B Payments,1303,06/07/2018,05/07/2018,TRAVELODGE GB0000,THAME,,OX9 3AT,REDACTED,556*********6959,3615,TRAVELODGE,71,Pound Sterling (826),1,71,Debit,5.55E+22,02/08/2018,GLOUCESTER CC
Gloucester City Council,23UE,Housing Services,HS001,B&B Payments,1303,06/07/2018,05/07/2018,TRAVELODGE GB0000,THAME,,OX9 3AT,REDACTED,556*********6959,3615,TRAVELODGE,71,Pound Sterling (826),1,71,Debit,5.55E+22,02/08/2018,GLOUCESTER CC
Gloucester City Council,23UE,Housing Services,HS001,B&B Payments,1303,06/07/2018,05/07/2018,TRAVELODGE GB0000,THAME,,OX9 3AT,REDACTED,556*********6959,3615,TRAVELODGE,347,Pound Sterling (826),1,347,Debit,5.55E+22,02/08/2018,GLOUCESTER CC
Gloucester City Council,23UE,Housing Services,HS001,B&B Payments,1303,09/07/2018,06/07/2018,TRAVELODGE GB0000,THAME,,OX9 3AT,REDACTED,556*********6959,3615,TRAVELODGE,360,Pound Sterling (826),1,360,Debit,5.55E+22,02/08/2018,GLOUCESTER CC
Gloucester City Council,23UE,Housing Services,HS001,B&B Payments,1303,09/07/2018,06/07/2018,TRAVELODGE GB0000,THAME,,OX9 3AT,REDACTED,556*********6959,3615,TRAVELODGE,368,Pound Sterling (826),1,368,Debit,5.55E+22,02/08/2018,GLOUCESTER CC
Gloucester City Council,23UE,Housing Services,HS001,Mileage and Travel Allowances,2401,09/07/2018,06/07/2018,NATIONAL EXPRESS LIMIT,BIRMINGHAM,,B5 6DD,REDACTED,556*********6959,4131,"BUS LINES, CHARTERS, TOUR BUSES",10.6,Pound Sterling (826),1,10.6,Debit,8.55E+22,02/08/2018,GLOUCESTER CC
Gloucester City Council,23UE,Housing Services,HS001,Books & Publications,3401,10/07/2018,09/07/2018,PAYPAL *LAG,35314369001,GBR,TW91EH,REDACTED,556*********6959,8398,CHARITABLE AND SOCIAL SERVICE ORGANIZATIONS,203.7,Pound Sterling (826),1,203.7,Debit,8.51E+22,02/08/2018,GLOUCESTER CC
Gloucester City Council,23UE,Housing Services,HS001,B&B Payments,1303,10/07/2018,09/07/2018,TRAVELODGE GB0000,THAME,,OX9 3AT,REDACTED,556*********6959,3615,TRAVELODGE,75,Pound Sterling (826),1,75,Debit,5.55E+22,02/08/2018,GLOUCESTER CC
Gloucester City Council,23UE,Housing Services,HS001,B&B Payments,1303,10/07/2018,09/07/2018,TRAVELODGE GB0000,THAME,,OX9 3AT,REDACTED,556*********6959,3615,TRAVELODGE,75,Pound Sterling (826),1,75,Debit,5.55E+22,02/08/2018,GLOUCESTER CC
Gloucester City Council,23UE,Housing Services,HS001,B&B Payments,1303,10/07/2018,09/07/2018,TRAVELODGE GB0000,THAME,,OX9 3AT,REDACTED,556*********6959,3615,TRAVELODGE,75,Pound Sterling (826),1,75,Debit,5.55E+22,02/08/2018,GLOUCESTER CC
Gloucester City Council,23UE,Housing Services,HS001,B&B Payments,1303,10/07/2018,09/07/2018,TRAVELODGE GB0000,THAME,,OX9 3AT,REDACTED,556*********6959,3615,TRAVELODGE,404,Pound Sterling (826),1,404,Debit,5.55E+22,02/08/2018,GLOUCESTER CC
Gloucester City Council,23UE,Housing Services,HS001,B&B Payments,1303,10/07/2018,09/07/2018,TRAVELODGE GB0000,THAME,,OX9 3AT,REDACTED,556*********6959,3615,TRAVELODGE,259,Pound Sterling (826),1,259,Debit,5.55E+22,02/08/2018,GLOUCESTER CC
Gloucester City Council,23UE,Housing Services,HS001,B&B Payments,1303,11/07/2018,10/07/2018,TRAVELODGE GB0000,THAME,,OX9 3AT,REDACTED,556*********6959,3615,TRAVELODGE,184,Pound Sterling (826),1,184,Debit,5.55E+22,02/08/2018,GLOUCESTER CC
Gloucester City Council,23UE,Housing Services,HS001,B&B Payments,1303,11/07/2018,10/07/2018,TRAVELODGE GB0000,THAME,,OX9 3AT,REDACTED,556*********6959,3615,TRAVELODGE,184,Pound Sterling (826),1,184,Debit,5.55E+22,02/08/2018,GLOUCESTER CC
Gloucester City Council,23UE,Housing Services,HS001,B&B Payments,1303,11/07/2018,10/07/2018,TRAVELODGE GB0000,THAME,,OX9 3AT,REDACTED,556*********6959,3615,TRAVELODGE,92,Pound Sterling (826),1,92,Debit,5.55E+22,02/08/2018,GLOUCESTER CC
Gloucester City Council,23UE,Housing Services,HS001,B&B Payments,1303,11/07/2018,10/07/2018,TRAVELODGE GB0000,THAME,,OX9 3AT,REDACTED,556*********6959,3615,TRAVELODGE,184,Pound Sterling (826),1,184,Debit,5.55E+22,02/08/2018,GLOUCESTER CC
Gloucester City Council,23UE,Housing Services,HS001,B&B Payments,1303,11/07/2018,10/07/2018,Amerisuites,GLOUCESTER,,GL2 4NF,REDACTED,556*********6959,3514,AMERISUITES,285,Pound Sterling (826),1,285,Debit,8.55E+22,02/08/2018,GLOUCESTER CC
Gloucester City Council,23UE,Housing Services,HS001,B&B Payments,1303,11/07/2018,10/07/2018,Amerisuites,GLOUCESTER,,GL2 4NF,REDACTED,556*********6959,3514,AMERISUITES,560,Pound Sterling (826),1,560,Debit,8.55E+22,02/08/2018,GLOUCESTER CC
Gloucester City Council,23UE,Housing Services,HS001,B&B Payments,1303,11/07/2018,10/07/2018,TRAVELODGE GB0000,THAME,,OX9 3AT,REDACTED,556*********6959,3615,TRAVELODGE,-184,Pound Sterling (826),1,-184,Credit,5.55E+22,02/08/2018,GLOUCESTER CC
Gloucester City Council,23UE,Housing Services,HS001,B&B Payments,1303,12/07/2018,11/07/2018,TRAVELODGE GB0000,THAME,,OX9 3AT,REDACTED,556*********6959,3615,TRAVELODGE,92,Pound Sterling (826),1,92,Debit,5.55E+22,02/08/2018,GLOUCESTER CC
Gloucester City Council,23UE,Housing Services,HS001,B&B Payments,1303,12/07/2018,11/07/2018,TRAVELODGE GB0000,THAME,,OX9 3AT,REDACTED,556*********6959,3615,TRAVELODGE,92,Pound Sterling (826),1,92,Debit,5.55E+22,02/08/2018,GLOUCESTER CC
Gloucester City Council,23UE,Housing Services,HS001,B&B Payments,1303,12/07/2018,11/07/2018,Amerisuites,GLOUCESTER,,GL2 4NF,REDACTED,556*********6959,3514,AMERISUITES,40,Pound Sterling (826),1,40,Debit,8.55E+22,02/08/2018,GLOUCESTER CC
Gloucester City Council,23UE,Housing Services,HS001,B&B Payments,1303,13/07/2018,12/07/2018,TRAVELODGE GB0000,THAME,,OX9 3AT,REDACTED,556*********6959,3615,TRAVELODGE,330,Pound Sterling (826),1,330,Debit,5.55E+22,02/08/2018,GLOUCESTER CC
Gloucester City Council,23UE,Housing Services,HS001,B&B Payments,1303,17/07/2018,16/07/2018,TRAVELODGE GB0000,THAME,,OX9 3AT,REDACTED,556*********6959,3615,TRAVELODGE,612,Pound Sterling (826),1,612,Debit,5.55E+22,02/08/2018,GLOUCESTER CC
Gloucester City Council,23UE,Housing Services,HS001,B&B Payments,1303,18/07/2018,17/07/2018,Amerisuites,GLOUCESTER,,GL2 4NF,REDACTED,556*********6959,3514,AMERISUITES,285,Pound Sterling (826),1,285,Debit,8.55E+22,02/08/2018,GLOUCESTER CC
Gloucester City Council,23UE,Housing Services,HS001,B&B Payments,1303,18/07/2018,17/07/2018,Amerisuites,GLOUCESTER,,GL2 4NF,REDACTED,556*********6959,3514,AMERISUITES,560,Pound Sterling (826),1,560,Debit,8.55E+22,02/08/2018,GLOUCESTER CC
Gloucester City Council,23UE,Housing Services,HS001,B&B Payments,1303,19/07/2018,18/07/2018,TRAVELODGE GB0000,THAME,,OX9 3AT,REDACTED,556*********6959,3615,TRAVELODGE,448,Pound Sterling (826),1,448,Debit,5.55E+22,02/08/2018,GLOUCESTER CC
Gloucester City Council,23UE,Housing Services,HS001,B&B Payments,1303,19/07/2018,18/07/2018,TRAVELODGE GB0000,THAME,,OX9 3AT,REDACTED,556*********6959,3615,TRAVELODGE,372,Pound Sterling (826),1,372,Debit,5.55E+22,02/08/2018,GLOUCESTER CC
Gloucester City Council,23UE,Housing Services,HS001,B&B Payments,1303,19/07/2018,18/07/2018,TRAVELODGE GB0000,THAME,,OX9 3AT,REDACTED,556*********6959,3615,TRAVELODGE,92,Pound Sterling (826),1,92,Debit,5.55E+22,02/08/2018,GLOUCESTER CC
Gloucester City Council,23UE,Housing Services,HS001,B&B Payments,1303,19/07/2018,18/07/2018,Amerisuites,GLOUCESTER,,GL2 4NF,REDACTED,556*********6959,3514,AMERISUITES,285,Pound Sterling (826),1,285,Debit,8.55E+22,02/08/2018,GLOUCESTER CC
Gloucester City Council,23UE,Housing Services,HS001,B&B Payments,1303,20/07/2018,19/07/2018,TRAVELODGE GB0000,THAME,,OX9 3AT,REDACTED,556*********6959,3615,TRAVELODGE,71,Pound Sterling (826),1,71,Debit,5.55E+22,02/08/2018,GLOUCESTER CC
Gloucester City Council,23UE,Housing Services,HS001,B&B Payments,1303,23/07/2018,20/07/2018,TRAVELODGE GB0000,THAME,,OX9 3AT,REDACTED,556*********6959,3615,TRAVELODGE,350,Pound Sterling (826),1,350,Debit,5.55E+22,02/08/2018,GLOUCESTER CC
Gloucester City Council,23UE,Housing Services,HS001,B&B Payments,1303,23/07/2018,20/07/2018,TRAVELODGE GB0000,THAME,,OX9 3AT,REDACTED,556*********6959,3615,TRAVELODGE,197,Pound Sterling (826),1,197,Debit,5.55E+22,02/08/2018,GLOUCESTER CC
Gloucester City Council,23UE,Housing Services,HS001,B&B Payments,1303,23/07/2018,20/07/2018,TRAVELODGE GB0000,THAME,,OX9 3AT,REDACTED,556*********6959,3615,TRAVELODGE,209,Pound Sterling (826),1,209,Debit,5.55E+22,02/08/2018,GLOUCESTER CC
Gloucester City Council,23UE,Housing Services,HS001,B&B Payments,1303,24/07/2018,23/07/2018,TRAVELODGE GB0000,THAME,,OX9 3AT,REDACTED,556*********6959,3615,TRAVELODGE,602,Pound Sterling (826),1,602,Debit,5.55E+22,02/08/2018,GLOUCESTER CC
Gloucester City Council,23UE,Housing Services,HS001,B&B Payments,1303,24/07/2018,23/07/2018,TRAVELODGE GB0000,THAME,,OX9 3AT,REDACTED,556*********6959,3615,TRAVELODGE,263,Pound Sterling (826),1,263,Debit,5.55E+22,02/08/2018,GLOUCESTER CC
Gloucester City Council,23UE,Housing Services,HS001,B&B Payments,1303,24/07/2018,23/07/2018,TRAVELODGE GB0000,THAME,,OX9 3AT,REDACTED,556*********6959,3615,TRAVELODGE,538,Pound Sterling (826),1,538,Debit,5.55E+22,02/08/2018,GLOUCESTER CC
Gloucester City Council,23UE,Housing Services,HS001,B&B Payments,1303,26/07/2018,25/07/2018,TRAVELODGE GB0000,THAME,,OX9 3AT,REDACTED,556*********6959,3615,TRAVELODGE,350,Pound Sterling (826),1,350,Debit,5.55E+22,02/08/2018,GLOUCESTER CC
Gloucester City Council,23UE,Housing Services,HS001,B&B Payments,1303,27/07/2018,26/07/2018,TRAVELODGE GB0000,THAME,,OX9 3AT,REDACTED,556*********6959,3615,TRAVELODGE,75,Pound Sterling (826),1,75,Debit,5.55E+22,02/08/2018,GLOUCESTER CC
Gloucester City Council,23UE,Housing Services,HS001,B&B Payments,1303,27/07/2018,26/07/2018,TRAVELODGE GB0000,THAME,,OX9 3AT,REDACTED,556*********6959,3615,TRAVELODGE,505,Pound Sterling (826),1,505,Debit,5.55E+22,02/08/2018,GLOUCESTER CC
Gloucester City Council,23UE,Housing Services,HS001,B&B Payments,1303,27/07/2018,26/07/2018,TRAVELODGE GB0000,THAME,,OX9 3AT,REDACTED,556*********6959,3615,TRAVELODGE,280,Pound Sterling (826),1,280,Debit,5.55E+22,02/08/2018,GLOUCESTER CC
Gloucester City Council,23UE,Housing Services,HS001,B&B Payments,1303,27/07/2018,26/07/2018,TRAVELODGE GB0000,THAME,,OX9 3AT,REDACTED,556*********6959,3615,TRAVELODGE,75,Pound Sterling (826),1,75,Debit,5.55E+22,02/08/2018,GLOUCESTER CC
Gloucester City Council,23UE,Housing Services,HS001,B&B Payments,1303,27/07/2018,26/07/2018,Amerisuites,GLOUCESTER,,GL2 4NF,REDACTED,556*********6959,3514,AMERISUITES,40,Pound Sterling (826),1,40,Debit,8.55E+22,02/08/2018,GLOUCESTER CC
Gloucester City Council,23UE,Housing Services,HS001,B&B Payments,1303,27/07/2018,26/07/2018,Amerisuites,GLOUCESTER,,GL2 4NF,REDACTED,556*********6959,3514,AMERISUITES,285,Pound Sterling (826),1,285,Debit,8.55E+22,02/08/2018,GLOUCESTER CC
Gloucester City Council,23UE,Housing Services,HS001,B&B Payments,1303,27/07/2018,26/07/2018,Amerisuites,GLOUCESTER,,GL2 4NF,REDACTED,556*********6959,3514,AMERISUITES,490,Pound Sterling (826),1,490,Debit,8.55E+22,02/08/2018,GLOUCESTER CC
Gloucester City Council,23UE,Housing Services,HS001,B&B Payments,1303,27/07/2018,26/07/2018,Amerisuites,GLOUCESTER,,GL2 4NF,REDACTED,556*********6959,3514,AMERISUITES,40,Pound Sterling (826),1,40,Debit,8.55E+22,02/08/2018,GLOUCESTER CC
Gloucester City Council,23UE,Housing Services,HS001,B&B Payments,1303,30/07/2018,27/07/2018,TRAVELODGE GB0000,THAME,,OX9 3AT,REDACTED,556*********6959,3615,TRAVELODGE,281,Pound Sterling (826),1,281,Debit,5.55E+22,02/08/2018,GLOUCESTER CC
Gloucester City Council,23UE,Housing Services,HS001,B&B Payments,1303,30/07/2018,27/07/2018,TRAVELODGE GB0000,THAME,,OX9 3AT,REDACTED,556*********6959,3615,TRAVELODGE,205,Pound Sterling (826),1,205,Debit,5.55E+22,02/08/2018,GLOUCESTER CC
Gloucester City Council,23UE,Housing Services,HS001,B&B Payments,1303,30/07/2018,27/07/2018,TRAVELODGE GB0000,THAME,,OX9 3AT,REDACTED,556*********6959,3615,TRAVELODGE,198,Pound Sterling (826),1,198,Debit,5.55E+22,02/08/2018,GLOUCESTER CC
Gloucester City Council,23UE,Housing Services,HS001,B&B Payments,1303,30/07/2018,27/07/2018,TRAVELODGE GB0000,THAME,,OX9 3AT,REDACTED,556*********6959,3615,TRAVELODGE,134,Pound Sterling (826),1,134,Debit,5.55E+22,02/08/2018,GLOUCESTER CC
Gloucester City Council,23UE,Housing Services,HS001,B&B Payments,1303,30/07/2018,27/07/2018,TRAVELODGE GB0000,THAME,,OX9 3AT,REDACTED,556*********6959,3615,TRAVELODGE,684,Pound Sterling (826),1,684,Debit,5.55E+22,02/08/2018,GLOUCESTER CC
Gloucester City Council,23UE,Housing Services,HS001,B&B Payments,1303,31/07/2018,30/07/2018,TRAVELODGE GB0000,THAME,,OX9 3AT,REDACTED,556*********6959,3615,TRAVELODGE,257,Pound Sterling (826),1,257,Debit,5.55E+22,02/08/2018,GLOUCESTER CC
Gloucester City Council,23UE,Housing Services,HS001,B&B Payments,1303,31/07/2018,30/07/2018,TRAVELODGE GB0000,THAME,,OX9 3AT,REDACTED,556*********6959,3615,TRAVELODGE,237,Pound Sterling (826),1,237,Debit,5.55E+22,02/08/2018,GLOUCESTER CC
Gloucester City Council,23UE,Housing Services,HS001,B&B Payments,1303,31/07/2018,30/07/2018,TRAVELODGE GB0000,THAME,,OX9 3AT,REDACTED,556*********6959,3615,TRAVELODGE,92,Pound Sterling (826),1,92,Debit,5.55E+22,02/08/2018,GLOUCESTER CC
Gloucester City Council,23UE,Housing Services,HS001,B&B Payments,1303,31/07/2018,30/07/2018,TRAVELODGE GB0000,THAME,,OX9 3AT,REDACTED,556*********6959,3615,TRAVELODGE,257,Pound Sterling (826),1,257,Debit,5.55E+22,02/08/2018,GLOUCESTER CC
Gloucester City Council,23UE,Housing Services,HS001,B&B Payments,1303,01/08/2018,31/07/2018,TRAVELODGE GB0000,THAME,,OX9 3AT,REDACTED,556*********6959,3615,TRAVELODGE,156,Pound Sterling (826),1,156,Debit,5.55E+22,02/08/2018,GLOUCESTER CC
Gloucester City Council,23UE,Housing Services,HS001,B&B Payments,1303,02/08/2018,31/07/2018,Amerisuites,GLOUCESTER,,GL2 4NF,REDACTED,556*********6959,3514,AMERISUITES,285,Pound Sterling (826),1,285,Debit,8.55E+22,02/08/2018,GLOUCESTER CC
Gloucester City Council,23UE,Members Support,DS002,Mileage and Travel Allowances,2401,04/07/2018,03/07/2018,Trainline,London,GBR,1445,REDACTED,556*********3822,4112,PASSENGER RAILWAYS,26.85,Pound Sterling (826),1,26.85,Debit,8.51E+22,02/08/2018,GLOUCESTER CC
Gloucester City Council,23UE,Historic Buildings,PL006,Equipment and Furniture,3001,11/07/2018,10/07/2018,WWW.TTS-GROUPS.CO.UK,INTERNET,GBR,NG17 9LE,REDACTED,556*********3822,5943,"STATIONERY, OFFICE AND SCHOOL SUPPLY STO",35.93,Pound Sterling (826),1,35.93,Debit,2.54E+22,02/08/2018,GLOUCESTER CC
Gloucester City Council,23UE,Council Streetcare Team,NE002,Public Transport - Staff,2402,13/07/2018,12/07/2018,Trainline,London,GBR,1445,REDACTED,556*********3822,4112,PASSENGER RAILWAYS,34.85,Pound Sterling (826),1,34.85,Debit,8.51E+22,02/08/2018,GLOUCESTER CC
Gloucester City Council,23UE,Gloucester Guildhall,GH001,General Supplies/Materials,3025,03/07/2018,29/06/2018,MIPERMIT LTD,INTERNET,GBR,SN15 5FD,REDACTED,556*********8256,7523,AUTOMOBILE PARKING LOTS AND GARAGES,10,Pound Sterling (826),1,10,Debit,2.54E+22,02/08/2018,GLOUCESTER CC
Gloucester City Council,23UE,Gloucester Guildhall,GH001,General Supplies/Materials,3025,03/07/2018,02/07/2018,WWW.INSTANTPRINT.C,01709 382202,,S63 5DR,REDACTED,556*********8256,7338,QUICK-COPY AND REPRODUCTION SERVICES,46.99,Pound Sterling (826),1,46.99,Debit,8.55E+22,02/08/2018,GLOUCESTER CC
Gloucester City Council,23UE,Gloucester Guildhall,GH001,General Supplies/Materials,3025,05/07/2018,03/07/2018,GLOUCESTER CC INT,GLOUCESTER,GBR,GL1 2EQ,REDACTED,556*********8256,9399,GOVERNMENT SERVICES NOT ELSEWHERE CLASSIFIED,21,Pound Sterling (826),1,21,Debit,1.54E+22,02/08/2018,GLOUCESTER CC
Gloucester City Council,23UE,Gloucester Guildhall,GH001,General Supplies/Materials,3025,05/07/2018,03/07/2018,GLOUCESTER CC INT,GLOUCESTER,GBR,GL1 2EQ,REDACTED,556*********8256,9399,GOVERNMENT SERVICES NOT ELSEWHERE CLASSIFIED,21,Pound Sterling (826),1,21,Debit,1.54E+22,02/08/2018,GLOUCESTER CC
Gloucester City Council,23UE,Gloucester Guildhall,GH001,General Supplies/Materials,3025,05/07/2018,04/07/2018,THE WATERSHED ARTS TRU,BRISTOL CENTR,GBR,BS1 5TX,REDACTED,556*********8256,7832,MOTION PICTURE THEATERS,45,Pound Sterling (826),1,45,Debit,4.54E+22,02/08/2018,GLOUCESTER CC
Gloucester City Council,23UE,Gloucester Guildhall,GH001,General Supplies/Materials,3025,05/07/2018,04/07/2018,WWW.INSTANTPRINT.C,01709 382202,,S63 5DR,REDACTED,556*********8256,7338,QUICK-COPY AND REPRODUCTION SERVICES,36.99,Pound Sterling (826),1,36.99,Debit,8.55E+22,02/08/2018,GLOUCESTER CC
Gloucester City Council,23UE,Gloucester Guildhall,GH001,General Supplies/Materials,3025,10/07/2018,09/07/2018,A & E FIRE EQUIPMENT L,CHELTENHAM GL,,GL51 6SX,REDACTED,556*********8256,5999,MISCELLANEOUS AND RETAIL STORES,40.8,Pound Sterling (826),1,40.8,Debit,5.52E+22,02/08/2018,GLOUCESTER CC
Gloucester City Council,23UE,Gloucester Guildhall,GH001,General Supplies/Materials,3025,10/07/2018,09/07/2018,HALFORDS 0749,GLOUCESTER,GBR,GL4 3EA,REDACTED,556*********8256,5940,BICYCLE SHOPS-SALES AND SERVICE,30,Pound Sterling (826),1,30,Debit,3.54E+22,02/08/2018,GLOUCESTER CC
Gloucester City Council,23UE,Gloucester Guildhall,GH001,General Supplies/Materials,3025,11/07/2018,10/07/2018,Amazon UK Marketplace,800-279-6620,LUX,L2338,REDACTED,556*********8256,5942,BOOK STORES,54.95,Pound Sterling (826),1,54.95,Debit,5.52E+22,02/08/2018,GLOUCESTER CC
Gloucester City Council,23UE,Gloucester Guildhall,GH001,General Supplies/Materials,3025,12/07/2018,11/07/2018,BLOOMING ARTIFICIAL,8009777589,GBR,EC3V 0DR,REDACTED,556*********8256,5992,FLORISTS,306.78,Pound Sterling (826),1,306.78,Debit,7.53E+22,02/08/2018,GLOUCESTER CC
Gloucester City Council,23UE,Gloucester Guildhall,GH001,General Supplies/Materials,3025,12/07/2018,11/07/2018,WWW.INSTANTPRINT.C,01709 382202,,S63 5DR,REDACTED,556*********8256,7338,QUICK-COPY AND REPRODUCTION SERVICES,20.99,Pound Sterling (826),1,20.99,Debit,8.55E+22,02/08/2018,GLOUCESTER CC
Gloucester City Council,23UE,Gloucester Guildhall,GH001,General Supplies/Materials,3025,13/07/2018,11/07/2018,CPC,Leeds,GBR,LS12 2NE,REDACTED,556*********8256,5065,ELECTRICAL PARTS AND EQUIPMENT,152.86,Pound Sterling (826),1,152.86,Debit,8.51E+22,02/08/2018,GLOUCESTER CC
Gloucester City Council,23UE,Gloucester Guildhall,GH001,General Supplies/Materials,3025,13/07/2018,12/07/2018,Amazon UK Marketplace,800-279-6620,LUX,L2338,REDACTED,556*********8256,5942,BOOK STORES,20.47,Pound Sterling (826),1,20.47,Debit,5.52E+22,02/08/2018,GLOUCESTER CC
Gloucester City Council,23UE,Gloucester Guildhall,GH001,General Supplies/Materials,3025,17/07/2018,16/07/2018,GWR WEBSALES,SWINDON,,SN1 1HL,REDACTED,556*********8256,4112,PASSENGER RAILWAYS,19.4,Pound Sterling (826),1,19.4,Debit,5.55E+22,02/08/2018,GLOUCESTER CC
Gloucester City Council,23UE,Gloucester Guildhall,GH001,General Supplies/Materials,3025,17/07/2018,13/07/2018,CPC,Leeds,GBR,LS12 2NE,REDACTED,556*********8256,5065,ELECTRICAL PARTS AND EQUIPMENT,152.86,Pound Sterling (826),1,152.86,Debit,8.51E+22,02/08/2018,GLOUCESTER CC
Gloucester City Council,23UE,Gloucester Guildhall,GH001,General Supplies/Materials,3025,18/07/2018,17/07/2018,WWW.INSTANTPRINT.C,01709 382202,,S63 5DR,REDACTED,556*********8256,7338,QUICK-COPY AND REPRODUCTION SERVICES,53.99,Pound Sterling (826),1,53.99,Debit,8.55E+22,02/08/2018,GLOUCESTER CC
Gloucester City Council,23UE,Gloucester Guildhall,GH001,General Supplies/Materials,3025,19/07/2018,18/07/2018,WWW.ROOMSBOOKED.COM,INTERNET,GBR,GL50 4BA,REDACTED,556*********8256,7011,"LODGING, HOTELS, MOTELS, RESORTS",79,Pound Sterling (826),1,79,Debit,4.54E+22,02/08/2018,GLOUCESTER CC
Gloucester City Council,23UE,Gloucester Guildhall,GH001,General Supplies/Materials,3025,19/07/2018,18/07/2018,MAILCHIMP *MONTHLY,MAILCHIMP.COM,GA,30308,REDACTED,556*********8256,5968,CONTINUITY/SUBSCRIPTION MERCHANTS,15.42,Pound Sterling (826),1,15.42,Debit,5.54E+22,02/08/2018,GLOUCESTER CC
Gloucester City Council,23UE,Gloucester Guildhall,GH001,General Supplies/Materials,3025,19/07/2018,18/07/2018,DVLA VEHICLE TAX,(DVLA),,SA70EE,REDACTED,556*********8256,9399,GOVERNMENT SERVICES NOT ELSEWHERE CLASSIFIED,157.5,Pound Sterling (826),1,157.5,Debit,8.55E+22,02/08/2018,GLOUCESTER CC
Gloucester City Council,23UE,Gloucester Guildhall,GH001,General Supplies/Materials,3025,20/07/2018,18/07/2018,TV LICENSING,3007906071,,BS1 6AB,REDACTED,556*********8256,7392,"MANAGEMENT, CONSULTING AND PUBLIC RELATIONS SERVICES",150.5,Pound Sterling (826),1,150.5,Debit,8.55E+22,02/08/2018,GLOUCESTER CC
Gloucester City Council,23UE,Gloucester Guildhall,GH001,General Supplies/Materials,3025,20/07/2018,19/07/2018,WAYFAIR #2569249678,INTERNET,GBR,H91 W260,REDACTED,556*********8256,5965,COMBINATION CATALOG AND RETAIL MERCHANT,314.98,Pound Sterling (826),1,314.98,Debit,4.54E+22,02/08/2018,GLOUCESTER CC
Gloucester City Council,23UE,Gloucester Guildhall,GH001,General Supplies/Materials,3025,20/07/2018,18/07/2018,CPC,Leeds,GBR,LS12 2NE,REDACTED,556*********8256,5065,ELECTRICAL PARTS AND EQUIPMENT,206.64,Pound Sterling (826),1,206.64,Debit,8.51E+22,02/08/2018,GLOUCESTER CC
Gloucester City Council,23UE,Gloucester Guildhall,GH001,General Supplies/Materials,3025,23/07/2018,20/07/2018,MIPERMIT LTD,INTERNET,GBR,SN15 5FD,REDACTED,556*********8256,7523,AUTOMOBILE PARKING LOTS AND GARAGES,10,Pound Sterling (826),1,10,Debit,2.54E+22,02/08/2018,GLOUCESTER CC
Gloucester City Council,23UE,Gloucester Guildhall,GH001,General Supplies/Materials,3025,23/07/2018,20/07/2018,FACEBK *5U25KGS9X2,fb.me/ads,IRL,UNKNOWN,REDACTED,556*********8256,7311,ADVERTISING SERVICES,20,Pound Sterling (826),1,20,Debit,5.52E+22,02/08/2018,GLOUCESTER CC
Gloucester City Council,23UE,Gloucester Guildhall,GH001,General Supplies/Materials,3025,23/07/2018,22/07/2018,FACEBK *JRYZEGEBG2,fb.me/ads,IRL,UNKNOWN,REDACTED,556*********8256,7311,ADVERTISING SERVICES,20,Pound Sterling (826),1,20,Debit,5.52E+22,02/08/2018,GLOUCESTER CC
Gloucester City Council,23UE,Gloucester Guildhall,GH001,General Supplies/Materials,3025,24/07/2018,23/07/2018,FACEBK *NLBLTHJ9X2,fb.me/ads,IRL,UNKNOWN,REDACTED,556*********8256,7311,ADVERTISING SERVICES,40,Pound Sterling (826),1,40,Debit,5.52E+22,02/08/2018,GLOUCESTER CC
Gloucester City Council,23UE,Gloucester Guildhall,GH001,General Supplies/Materials,3025,25/07/2018,24/07/2018,Trainline,London,GBR,1445,REDACTED,556*********8256,4112,PASSENGER RAILWAYS,20.15,Pound Sterling (826),1,20.15,Debit,8.51E+22,02/08/2018,GLOUCESTER CC
Gloucester City Council,23UE,Gloucester Guildhall,GH001,General Supplies/Materials,3025,25/07/2018,24/07/2018,WWW.DIGITALPRINTING.CO,2890222111,,BT3 9JP,REDACTED,556*********8256,7338,QUICK-COPY AND REPRODUCTION SERVICES,25.14,Pound Sterling (826),1,25.14,Debit,5.55E+22,02/08/2018,GLOUCESTER CC
Gloucester City Council,23UE,Gloucester Guildhall,GH001,General Supplies/Materials,3025,30/07/2018,28/07/2018,Amazon UK Marketplace,800-279-6620,LUX,L2338,REDACTED,556*********8256,5942,BOOK STORES,14.97,Pound Sterling (826),1,14.97,Debit,5.52E+22,02/08/2018,GLOUCESTER CC
Gloucester City Council,23UE,Gloucester Guildhall,GH001,General Supplies/Materials,3025,31/07/2018,30/07/2018,Amazon UK Marketplace,800-279-6620,LUX,L2338,REDACTED,556*********8256,5942,BOOK STORES,39,Pound Sterling (826),1,39,Debit,5.52E+22,02/08/2018,GLOUCESTER CC
Gloucester City Council,23UE,Gloucester Guildhall,GH001,General Supplies/Materials,3025,01/08/2018,31/07/2018,FACEBK MH7P2HE6M2,fb.me/ads,IRL,2,REDACTED,556*********8256,7311,ADVERTISING SERVICES,24.33,Pound Sterling (826),1,24.33,Debit,1.53E+22,02/08/2018,GLOUCESTER CC
Gloucester City Council,23UE,Gloucester Guildhall,GH001,General Supplies/Materials,3025,01/08/2018,31/07/2018,FACEBK 9H7P2HE6M2,fb.me/ads,IRL,2,REDACTED,556*********8256,7311,ADVERTISING SERVICES,55.59,Pound Sterling (826),1,55.59,Debit,1.53E+22,02/08/2018,GLOUCESTER CC
Gloucester City Council,23UE,Gloucester Guildhall,GH001,General Supplies/Materials,3025,01/08/2018,31/07/2018,MIPERMIT LTD,INTERNET,GBR,SN15 5FD,REDACTED,556*********8256,7523,AUTOMOBILE PARKING LOTS AND GARAGES,10,Pound Sterling (826),1,10,Debit,2.54E+22,02/08/2018,GLOUCESTER CC
Gloucester City Council,23UE,Managing Director & Directors,MT001,ICT New Hardware,3523,03/07/2018,02/07/2018,Amazon UK Marketplace,800-279-6620,LUX,L2338,REDACTED,556*********3063,5942,BOOK STORES,10.98,Pound Sterling (826),1,10.98,Debit,5.52E+22,02/08/2018,GLOUCESTER CC
Gloucester City Council,23UE,Off Street Car Parks,PA001,Building Repairs and Maintenance,1001,04/07/2018,03/07/2018,BLINDS 2 GO LTD,NOTTINGHAM,GBR,NG2 1NA,REDACTED,556*********3063,5714,"WINDOW COVERING, UPHOLSTERY AND DRAPERY STORES",96.87,Pound Sterling (826),1,96.87,Debit,2.54E+22,02/08/2018,GLOUCESTER CC
Gloucester City Council,23UE,Civica Admin Charges,BI002,Professional Advice/Consultants fees,3952,04/07/2018,03/07/2018,HMCOURTS-SERVICE.G,1452420100,,GL12ZG,REDACTED,556*********3063,9222,FINES,5000,Pound Sterling (826),1,5000,Debit,8.55E+22,02/08/2018,GLOUCESTER CC
Gloucester City Council,23UE,Civica Admin Charges,BI002,Professional Advice/Consultants fees,3952,04/07/2018,03/07/2018,HMCOURTS-SERVICE.G,1452420100,,GL12ZG,REDACTED,556*********3063,9222,FINES,1840,Pound Sterling (826),1,1840,Debit,8.55E+22,02/08/2018,GLOUCESTER CC
Gloucester City Council,23UE,Ranger Centre Barns/Storage,XCRCS,Contract Works/Services,9001,05/07/2018,03/07/2018,GLOUCESTER CC INT,GLOUCESTER,GBR,GL1 2EQ,REDACTED,556*********3063,9399,GOVERNMENT SERVICES NOT ELSEWHERE CLASSIFIED,96,Pound Sterling (826),1,96,Debit,1.54E+22,02/08/2018,GLOUCESTER CC
Gloucester City Council,23UE,Business Transformation,BI006,Equipment and Furniture,3001,11/07/2018,10/07/2018,Amazon UK Marketplace,800-279-6620,LUX,L2338,REDACTED,556*********3063,5942,BOOK STORES,17.2,Pound Sterling (826),1,17.2,Debit,5.52E+22,02/08/2018,GLOUCESTER CC
Gloucester City Council,23UE,Business Transformation,BI006,Equipment and Furniture,3001,11/07/2018,10/07/2018,Amazon UK Marketplace,800-279-6620,LUX,L2338,REDACTED,556*********3063,5942,BOOK STORES,37.23,Pound Sterling (826),1,37.23,Debit,5.52E+22,02/08/2018,GLOUCESTER CC
Gloucester City Council,23UE,Business Transformation,BI006,Building Repairs and Maintenance,1001,12/07/2018,11/07/2018,AMAZON SVCS EU-UK AMAZ,AMAZON.CO.UK,LUX,,REDACTED,556*********3063,5942,BOOK STORES,3.99,Pound Sterling (826),1,3.99,Debit,8.54E+22,02/08/2018,GLOUCESTER CC
Gloucester City Council,23UE,Civica Admin Charges,BI002,Professional Advice/Consultants fees,3952,25/07/2018,24/07/2018,HMCOURTS-SERVICE.G,1452420100,,GL12ZG,REDACTED,556*********3063,9222,FINES,427.5,Pound Sterling (826),1,427.5,Debit,8.55E+22,02/08/2018,GLOUCESTER CC
